Department,Entity,Date of Payment,Expense Type,Expense Area,Supplier,Transaction Number,Amount,Description,Supplier Post Code,Supplier Type
"Department for Business, Innovation and Skills",UK Space Agency,13/05/2021,R & D Salaries - Seconded UK Staff,UKSA - UKSA,"Department for Business, Energy and Industrial Strategy",371057,-14640.58,,NP10 8QQ,VENDOR
"Department for Business, Innovation and Skills",UK Space Agency,13/05/2021,R & D Salaries - Seconded UK Staff,UKSA - UKSA,"Department for Business, Energy and Industrial Strategy",371057,32209.28,,NP10 8QQ,VENDOR
"Department for Business, Innovation and Skills",UK Space Agency,04/05/2021,R & D Current Grants to Private Sector - NPISH,UK Space Agency - UK Space Agency,UKRI - Science and Technology Facilities Council,372863,420831.81,,SN2 1SZ,WGA ONLY
"Department for Business, Innovation and Skills",UK Space Agency,04/05/2021,R & D Current Grants to Private Sector - NPISH,UK Space Agency - UK Space Agency,UKRI - Science and Technology Facilities Council,372863,5489390.90,,SN2 1SZ,WGA ONLY
"Department for Business, Innovation and Skills",UK Space Agency,04/05/2021,R & D Current Grants to Private Sector - NPISH,UK Space Agency - UK Space Agency,UKRI - Science and Technology Facilities Council,373325,-5489390.90,,SN2 1SZ,WGA ONLY
"Department for Business, Innovation and Skills",UK Space Agency,04/05/2021,R & D Current Grants to Private Sector - NPISH,UK Space Agency - UK Space Agency,UKRI - Science and Technology Facilities Council,373325,-279149.81,,SN2 1SZ,WGA ONLY
"Department for Business, Innovation and Skills",UK Space Agency,04/05/2021,R & D Current Grants to Private Sector - NPISH,UK Space Agency - UK Space Agency,UKRI - Science and Technology Facilities Council,385711,3832174.96,,SN2 1SZ,WGA ONLY
"Department for Business, Innovation and Skills",UK Space Agency,10/05/2021,R & D Other Professional Services,UK Space Agency - UK Space Agency,UKRI - Science and Technology Facilities Council,385947,5292.56,,NP10 8QQ,WGA ONLY
"Department for Business, Innovation and Skills",UK Space Agency,10/05/2021,R & D Other Professional Services,UK Space Agency - UK Space Agency,UKRI - Science and Technology Facilities Council,385948,10843.70,,NP10 8QQ,WGA ONLY
"Department for Business, Innovation and Skills",UK Space Agency,10/05/2021,R & D Other Professional Services,UK Space Agency - UK Space Agency,UKRI - Science and Technology Facilities Council,385950,26818.09,,NP10 8QQ,WGA ONLY
"Department for Business, Innovation and Skills",UK Space Agency,20/05/2021,R & D Current Grants to Private Sector - NPISH,UK Space Agency - UK Space Agency,AstroAgency Ltd,388025,0.18,,EH11 2TB,GRANT
"Department for Business, Innovation and Skills",UK Space Agency,20/05/2021,R & D Current Grants to Private Sector - NPISH,UK Space Agency - UK Space Agency,AstroAgency Ltd,388025,23426.00,,EH11 2TB,GRANT
"Department for Business, Innovation and Skills",UK Space Agency,18/05/2021,R & D Current Grants to Private Sector - NPISH,UK Space Agency - UK Space Agency,GMV NSL Ltd,388619,-29993.16,,NG7 2TU,VENDOR
"Department for Business, Innovation and Skills",UK Space Agency,18/05/2021,R & D Current Grants to Private Sector - NPISH,UK Space Agency - UK Space Agency,GMV NSL Ltd,388619,750.00,,NG7 2TU,VENDOR
"Department for Business, Innovation and Skills",UK Space Agency,18/05/2021,R & D Current Grants to Private Sector - NPISH,UK Space Agency - UK Space Agency,GMV NSL Ltd,388619,59236.32,,NG7 2TU,VENDOR
"Department for Business, Innovation and Skills",UK Space Agency,26/05/2021,R & D Current Grants to Private Sector - NPISH,UK Space Agency - UK Space Agency,NLA International Ltd,389115,-301437.80,,OX25 1TJ,GRANT
"Department for Business, Innovation and Skills",UK Space Agency,26/05/2021,R & D Current Grants to Private Sector - NPISH,UK Space Agency - UK Space Agency,NLA International Ltd,389115,602875.60,,OX25 1TJ,GRANT
"Department for Business, Innovation and Skills",UK Space Agency,04/05/2021,R & D Contractors,UKSA - UKSA,Alexander Mann Solutions Ltd,389703,4311.48,,EC2N 3AQ,VENDOR
"Department for Business, Innovation and Skills",UK Space Agency,04/05/2021,R & D Contractors,UKSA - UKSA,Alexander Mann Solutions Ltd,389704,3449.18,,EC2N 3AQ,VENDOR
"Department for Business, Innovation and Skills",UK Space Agency,24/05/2021,R & D Contractors,UKSA - UKSA,Alexander Mann Solutions Ltd,389717,-2646.00,,EC2N 3AQ,VENDOR
"Department for Business, Innovation and Skills",UK Space Agency,24/05/2021,R & D Contractors,UKSA - UKSA,Alexander Mann Solutions Ltd,389717,4833.79,,EC2N 3AQ,VENDOR
"Department for Business, Innovation and Skills",UK Space Agency,04/05/2021,R & D Current Grants to Private Sector - NPISH,UK Space Agency - UK Space Agency,UKRI - Science and Technology Facilities Council,390264,-141682.00,,SN2 1SZ,WGA ONLY
"Department for Business, Innovation and Skills",UK Space Agency,21/05/2021,R & D Contractors,UKSA - UKSA,Alexander Mann Solutions Ltd,390426,-2945.68,,EC2N 3AQ,VENDOR
"Department for Business, Innovation and Skills",UK Space Agency,21/05/2021,R & D Contractors,UKSA - UKSA,Alexander Mann Solutions Ltd,390426,1767.41,,EC2N 3AQ,VENDOR
"Department for Business, Innovation and Skills",UK Space Agency,21/05/2021,R & D Contractors,UKSA - UKSA,Alexander Mann Solutions Ltd,390426,4713.09,,EC2N 3AQ,VENDOR
"Department for Business, Innovation and Skills",UK Space Agency,05/05/2021,R & D Contractors,UK Space Agency - UK Space Agency,Alexander Mann Solutions Ltd,390440,2294.50,,EC2N 3AQ,VENDOR
"Department for Business, Innovation and Skills",UK Space Agency,13/05/2021,R & D Contractors,UKSA - UKSA,Alexander Mann Solutions Ltd,390458,2025.74,,EC2N 3AQ,VENDOR
"Department for Business, Innovation and Skills",UK Space Agency,04/05/2021,R & D Coference and Exhibition Services,UKSA - UKSA,UKRI - Science and Technology Facilities Council,390828,-33600.00,,SN2 1SZ,WGA ONLY
"Department for Business, Innovation and Skills",UK Space Agency,05/05/2021,R & D Contractors,UKSA - UKSA,Alexander Mann Solutions Ltd,391196,-6467.22,,EC2N 3AQ,VENDOR
"Department for Business, Innovation and Skills",UK Space Agency,05/05/2021,R & D Contractors,UKSA - UKSA,Alexander Mann Solutions Ltd,391196,862.30,,EC2N 3AQ,VENDOR
"Department for Business, Innovation and Skills",UK Space Agency,05/05/2021,R & D Contractors,UKSA - UKSA,Alexander Mann Solutions Ltd,391196,13365.58,,EC2N 3AQ,VENDOR
"Department for Business, Innovation and Skills",UK Space Agency,06/05/2021,R & D Marketing and Media,UKSA - UKSA,Navillus Print Gifts Ltd,391486,2838.00,,SE10 9JT,VENDOR
"Department for Business, Innovation and Skills",UK Space Agency,06/05/2021,Capital Grants To Private Sector - Persons & NPISH,UK Space Agency - UK Space Agency,Surrey Satellite Technology Ltd,391749,45222.00,,GU2 7YE,VENDOR
"Department for Business, Innovation and Skills",UK Space Agency,06/05/2021,Capital Grants To Private Sector - Persons & NPISH,UK Space Agency - UK Space Agency,Surrey Satellite Technology Ltd,391749,45222.00,,GU2 7YE,VENDOR
"Department for Business, Innovation and Skills",UK Space Agency,04/05/2021,R & D Current Grants to Private Sector - NPISH,UK Space Agency - UK Space Agency,AVANTI COMMUNICATIONS LTD,391796,132699.00,,EC4V 6EB,GRANT
"Department for Business, Innovation and Skills",UK Space Agency,04/05/2021,R & D Other Professional Services,UK Space Agency - UK Space Agency,Aerospace Corporation UK Ltd,391828,91156.38,,SP3 5SN,VENDOR
"Department for Business, Innovation and Skills",UK Space Agency,04/05/2021,R & D Current Grants to Private Sector - NPISH,UK Space Agency - UK Space Agency,THE OPEN UNIVERSITY,391830,195369.77,,MK7 6BT,VENDOR
"Department for Business, Innovation and Skills",UK Space Agency,04/05/2021,R & D Current Grants to Private Sector - NPISH,UK Space Agency - UK Space Agency,Geospatial Insight Ltd,391831,33763.30,,B46 3AD,GRANT
"Department for Business, Innovation and Skills",UK Space Agency,04/05/2021,R & D Current Grants to Private Sector - NPISH,UK Space Agency - UK Space Agency,Geospatial Insight Ltd,391832,17920.75,,B46 3AD,GRANT
"Department for Business, Innovation and Skills",UK Space Agency,04/05/2021,R & D Current Grants to Private Sector - NPISH,UK Space Agency - UK Space Agency,REZATEC LTD,391838,2856.00,,OX11 0QR,GRANT
"Department for Business, Innovation and Skills",UK Space Agency,04/05/2021,R & D Current Grants to Private Sector - NPISH,UK Space Agency - UK Space Agency,In-Space Missions Limited,391846,40314.87,,GU34 2YT,VENDOR
"Department for Business, Innovation and Skills",UK Space Agency,05/05/2021,R & D Training and Development Expenditure,UKSA - UKSA,Dods Group Ltd,391926,234.00,,SE1 9SG,VENDOR
"Department for Business, Innovation and Skills",UK Space Agency,05/05/2021,R & D Contractors,UK Space Agency - UK Space Agency,Alexander Mann Solutions Ltd,391953,2520.24,,EC2N 3AQ,VENDOR
"Department for Business, Innovation and Skills",UK Space Agency,05/05/2021,R & D Contractors,UK Space Agency - UK Space Agency,Alexander Mann Solutions Ltd,391954,2388.53,,EC2N 3AQ,VENDOR
"Department for Business, Innovation and Skills",UK Space Agency,05/05/2021,R & D Employer's Social Security Costs - Casuals,UK Space Agency - UK Space Agency,Alexander Mann Solutions Ltd,391955,3276.30,,EC2N 3AQ,VENDOR
"Department for Business, Innovation and Skills",UK Space Agency,12/05/2021,R & D Other Professional Services,UKSA - UKSA,PRICEWATERHOUSECOOPERS LLP,391959,79809.97,,WC2N 6RH,VENDOR
"Department for Business, Innovation and Skills",UK Space Agency,12/05/2021,R & D Other Professional Services,UKSA - UKSA,PRICEWATERHOUSECOOPERS LLP,391959,312853.49,,WC2N 6RH,VENDOR
"Department for Business, Innovation and Skills",UK Space Agency,05/05/2021,R & D Contractors,UKSA - UKSA,Alexander Mann Solutions Ltd,391960,2209.26,,EC2N 3AQ,VENDOR
"Department for Business, Innovation and Skills",UK Space Agency,05/05/2021,R & D Current Grants to Private Sector - NPISH,UK Space Agency - UK Space Agency,Earth-i Ltd,391966,4840.43,,GU2 7AF,GRANT
"Department for Business, Innovation and Skills",UK Space Agency,05/05/2021,R & D Current Grants to Private Sector - NPISH,UK Space Agency - UK Space Agency,Earth-i Ltd,391966,9209.50,,GU2 7AF,GRANT
"Department for Business, Innovation and Skills",UK Space Agency,05/05/2021,R & D Current Grants to Private Sector - NPISH,UK Space Agency - UK Space Agency,Earth-i Ltd,391966,299494.13,,GU2 7AF,GRANT
"Department for Business, Innovation and Skills",UK Space Agency,05/05/2021,R & D Contractors,UK Space Agency - UK Space Agency,Alexander Mann Solutions Ltd,391968,3387.66,,EC2N 3AQ,VENDOR
"Department for Business, Innovation and Skills",UK Space Agency,05/05/2021,R & D Contractors,UK Space Agency - UK Space Agency,Robertson Bell Ltd,391969,581.58,,NN1 1SY,VENDOR
"Department for Business, Innovation and Skills",UK Space Agency,05/05/2021,R & D Contractors,UK Space Agency - UK Space Agency,Robertson Bell Ltd,391971,796.98,,NN1 1SY,VENDOR
"Department for Business, Innovation and Skills",UK Space Agency,18/05/2021,R & D Contractors,UK Space Agency - UK Space Agency,Alexander Mann Solutions Ltd,391972,3150.30,,EC2N 3AQ,VENDOR
"Department for Business, Innovation and Skills",UK Space Agency,05/05/2021,R & D Contractors,UK Space Agency - UK Space Agency,Robertson Bell Ltd,391973,796.98,,NN1 1SY,VENDOR
"Department for Business, Innovation and Skills",UK Space Agency,05/05/2021,R & D Contractors,UKSA - UKSA,Alexander Mann Solutions Ltd,391974,2771.70,,EC2N 3AQ,VENDOR
"Department for Business, Innovation and Skills",UK Space Agency,05/05/2021,R & D Contractors,UK Space Agency - UK Space Agency,Alexander Mann Solutions Ltd,391975,1147.25,,EC2N 3AQ,VENDOR
"Department for Business, Innovation and Skills",UK Space Agency,05/05/2021,R & D Contractors,UK Space Agency - UK Space Agency,Alexander Mann Solutions Ltd,391977,2205.18,,EC2N 3AQ,VENDOR
"Department for Business, Innovation and Skills",UK Space Agency,05/05/2021,R & D Contractors,UKSA - UKSA,Alexander Mann Solutions Ltd,391978,-3592.90,,EC2N 3AQ,VENDOR
"Department for Business, Innovation and Skills",UK Space Agency,05/05/2021,R & D Contractors,UKSA - UKSA,Alexander Mann Solutions Ltd,391978,7904.38,,EC2N 3AQ,VENDOR
"Department for Business, Innovation and Skills",UK Space Agency,25/05/2021,R & D Contractors,UKSA - UKSA,Alexander Mann Solutions Ltd,391979,-2110.15,,EC2N 3AQ,VENDOR
"Department for Business, Innovation and Skills",UK Space Agency,25/05/2021,R & D Contractors,UKSA - UKSA,Alexander Mann Solutions Ltd,391979,-2110.15,,EC2N 3AQ,VENDOR
"Department for Business, Innovation and Skills",UK Space Agency,25/05/2021,R & D Contractors,UKSA - UKSA,Alexander Mann Solutions Ltd,391979,3629.46,,EC2N 3AQ,VENDOR
"Department for Business, Innovation and Skills",UK Space Agency,25/05/2021,R & D Contractors,UKSA - UKSA,Alexander Mann Solutions Ltd,391979,5655.20,,EC2N 3AQ,VENDOR
"Department for Business, Innovation and Skills",UK Space Agency,05/05/2021,R & D Contractors,UKSA - UKSA,Alexander Mann Solutions Ltd,391980,14008.79,,EC2N 3AQ,VENDOR
"Department for Business, Innovation and Skills",UK Space Agency,05/05/2021,R & D Contractors,UKSA - UKSA,Alexander Mann Solutions Ltd,391982,6900.24,,EC2N 3AQ,VENDOR
"Department for Business, Innovation and Skills",UK Space Agency,05/05/2021,R & D Contractors,UKSA - UKSA,Alexander Mann Solutions Ltd,391983,1396.53,,EC2N 3AQ,VENDOR
"Department for Business, Innovation and Skills",UK Space Agency,05/05/2021,R & D Contractors,UKSA - UKSA,Alexander Mann Solutions Ltd,391983,2783.43,,EC2N 3AQ,VENDOR
"Department for Business, Innovation and Skills",UK Space Agency,05/05/2021,Payroll OGD Recharge,Corporate Payments,LEGAL AND GENERAL ASSURANCE SOCIETY LTD,391986,3047.85,,CF24 0EB,VENDOR
"Department for Business, Innovation and Skills",UK Space Agency,05/05/2021,R & D Contractors,UKSA - UKSA,Alexander Mann Solutions Ltd,391989,2734.74,,EC2N 3AQ,VENDOR
"Department for Business, Innovation and Skills",UK Space Agency,05/05/2021,R & D Contractors,UKSA - UKSA,Alexander Mann Solutions Ltd,391990,-2438.00,,EC2N 3AQ,VENDOR
"Department for Business, Innovation and Skills",UK Space Agency,05/05/2021,R & D Contractors,UKSA - UKSA,Alexander Mann Solutions Ltd,391990,5363.60,,EC2N 3AQ,VENDOR
"Department for Business, Innovation and Skills",UK Space Agency,05/05/2021,R & D Contractors,UKSA - UKSA,Alexander Mann Solutions Ltd,391991,3449.18,,EC2N 3AQ,VENDOR
"Department for Business, Innovation and Skills",UK Space Agency,05/05/2021,R & D Contractors,UKSA - UKSA,Alexander Mann Solutions Ltd,391993,668.71,,EC2N 3AQ,VENDOR
"Department for Business, Innovation and Skills",UK Space Agency,05/05/2021,R & D Contractors,UKSA - UKSA,Alexander Mann Solutions Ltd,391995,727.72,,EC2N 3AQ,VENDOR
"Department for Business, Innovation and Skills",UK Space Agency,05/05/2021,R & D Contractors,UKSA - UKSA,Alexander Mann Solutions Ltd,391996,3849.54,,EC2N 3AQ,VENDOR
"Department for Business, Innovation and Skills",UK Space Agency,06/05/2021,R & D Current Grants to Private Sector - NPISH,UK Space Agency - UK Space Agency,University of Northumbria at Newcastle t/a Northumbria University,392137,9936.33,,NE1 8ST,VENDOR
"Department for Business, Innovation and Skills",UK Space Agency,06/05/2021,R & D Current Grants to Private Sector - NPISH,UK Space Agency - UK Space Agency,University of Northumbria at Newcastle t/a Northumbria University,392137,21688.00,,NE1 8ST,VENDOR
"Department for Business, Innovation and Skills",UK Space Agency,06/05/2021,R & D Current Grants to Private Sector - NPISH,UK Space Agency - UK Space Agency,University of Northumbria at Newcastle t/a Northumbria University,392137,33048.00,,NE1 8ST,VENDOR
"Department for Business, Innovation and Skills",UK Space Agency,06/05/2021,R & D Current Grants to Private Sector - NPISH,UK Space Agency - UK Space Agency,University of Northumbria at Newcastle t/a Northumbria University,392137,243698.70,,NE1 8ST,VENDOR
"Department for Business, Innovation and Skills",UK Space Agency,12/05/2021,R & D Current Grants to Private Sector - NPISH,UK Space Agency - UK Space Agency,Lockheed Martin UK Strategic Systems Ltd,392158,577186.00,,G84 7QQ,GRANT
"Department for Business, Innovation and Skills",UK Space Agency,06/05/2021,R & D Contractors,UKSA - UKSA,Robertson Bell Ltd,392228,730.38,,NN1 1SY,VENDOR
"Department for Business, Innovation and Skills",UK Space Agency,06/05/2021,R & D Contractors,UKSA - UKSA,Robertson Bell Ltd,392232,438.23,,NN1 1SY,VENDOR
"Department for Business, Innovation and Skills",UK Space Agency,07/05/2021,R & D Other Travel,UK Space Agency - UK Space Agency,"Personal Expense, Name Withheld",392472,4.50,,,EMPLOYEE
"Department for Business, Innovation and Skills",UK Space Agency,07/05/2021,R & D Subsistence UK,UK Space Agency - UK Space Agency,"Personal Expense, Name Withheld",392472,28.00,,,EMPLOYEE
"Department for Business, Innovation and Skills",UK Space Agency,07/05/2021,R & D Taxi Services UK,UK Space Agency - UK Space Agency,"Personal Expense, Name Withheld",392472,52.00,,,EMPLOYEE
"Department for Business, Innovation and Skills",UK Space Agency,10/05/2021,R & D Current Grants to Private Sector - NPISH,UKSA - UKSA,STEM LEARNING LTD,392711,25399.00,,YO10 5DD,VENDOR
"Department for Business, Innovation and Skills",UK Space Agency,13/05/2021,R & D Rentals Under Non-PFI Operating Leases - Buildings,UK Space Agency - UK Space Agency,NATS (EN-ROUTE) PLC,392717,-431811.30,,EH12 5HD,VENDOR
"Department for Business, Innovation and Skills",UK Space Agency,13/05/2021,R & D Rentals Under Non-PFI Operating Leases - Buildings,UK Space Agency - UK Space Agency,NATS (EN-ROUTE) PLC,392717,474992.43,,EH12 5HD,VENDOR
"Department for Business, Innovation and Skills",UK Space Agency,10/05/2021,R & D Other Professional Services,UK Space Agency - UK Space Agency,UKRI - Science and Technology Facilities Council,392839,15548.68,,WA4 4AD,WGA ONLY
"Department for Business, Innovation and Skills",UK Space Agency,10/05/2021,R & D Contractors,UK Space Agency - UK Space Agency,Alexander Mann Solutions Ltd,392863,2520.24,,EC2N 3AQ,VENDOR
"Department for Business, Innovation and Skills",UK Space Agency,17/05/2021,R & D Contractors,UK Space Agency - UK Space Agency,Alexander Mann Solutions Ltd,392870,2985.66,,EC2N 3AQ,VENDOR
"Department for Business, Innovation and Skills",UK Space Agency,10/05/2021,R & D Contractors,UK Space Agency - UK Space Agency,Alexander Mann Solutions Ltd,392875,3276.30,,EC2N 3AQ,VENDOR
"Department for Business, Innovation and Skills",UK Space Agency,10/05/2021,R & D Contractors,UKSA - UKSA,Alexander Mann Solutions Ltd,392883,1767.41,,EC2N 3AQ,VENDOR
"Department for Business, Innovation and Skills",UK Space Agency,10/05/2021,R & D Contractors,UK Space Agency - UK Space Agency,Alexander Mann Solutions Ltd,392889,3387.66,,EC2N 3AQ,VENDOR
"Department for Business, Innovation and Skills",UK Space Agency,12/05/2021,R & D Contractors,UK Space Agency - UK Space Agency,Alexander Mann Solutions Ltd,392892,573.62,,EC2N 3AQ,VENDOR
"Department for Business, Innovation and Skills",UK Space Agency,12/05/2021,R & D Contractors,UK Space Agency - UK Space Agency,Alexander Mann Solutions Ltd,392894,2205.18,,EC2N 3AQ,VENDOR
"Department for Business, Innovation and Skills",UK Space Agency,12/05/2021,R & D Contractors,UKSA - UKSA,Alexander Mann Solutions Ltd,392895,9622.28,,EC2N 3AQ,VENDOR
"Department for Business, Innovation and Skills",UK Space Agency,12/05/2021,R & D Contractors,UKSA - UKSA,Alexander Mann Solutions Ltd,392897,-11025.40,,EC2N 3AQ,VENDOR
"Department for Business, Innovation and Skills",UK Space Agency,12/05/2021,R & D Contractors,UKSA - UKSA,Alexander Mann Solutions Ltd,392897,3969.15,,EC2N 3AQ,VENDOR
"Department for Business, Innovation and Skills",UK Space Agency,12/05/2021,R & D Contractors,UKSA - UKSA,Alexander Mann Solutions Ltd,392897,20286.73,,EC2N 3AQ,VENDOR
"Department for Business, Innovation and Skills",UK Space Agency,10/05/2021,R & D Contractors,UKSA - UKSA,Alexander Mann Solutions Ltd,392899,7782.66,,EC2N 3AQ,VENDOR
"Department for Business, Innovation and Skills",UK Space Agency,10/05/2021,R & D Contractors,UKSA - UKSA,Alexander Mann Solutions Ltd,392900,2734.74,,EC2N 3AQ,VENDOR
"Department for Business, Innovation and Skills",UK Space Agency,12/05/2021,R & D Contractors,UKSA - UKSA,Alexander Mann Solutions Ltd,392902,-1089.94,,EC2N 3AQ,VENDOR
"Department for Business, Innovation and Skills",UK Space Agency,12/05/2021,R & D Contractors,UKSA - UKSA,Alexander Mann Solutions Ltd,392902,-122.93,,EC2N 3AQ,VENDOR
"Department for Business, Innovation and Skills",UK Space Agency,12/05/2021,R & D Contractors,UKSA - UKSA,Alexander Mann Solutions Ltd,392902,270.45,,EC2N 3AQ,VENDOR
"Department for Business, Innovation and Skills",UK Space Agency,12/05/2021,R & D Contractors,UKSA - UKSA,Alexander Mann Solutions Ltd,392902,1670.14,,EC2N 3AQ,VENDOR
"Department for Business, Innovation and Skills",UK Space Agency,10/05/2021,R & D Contractors,UKSA - UKSA,Alexander Mann Solutions Ltd,392904,6929.18,,EC2N 3AQ,VENDOR
"Department for Business, Innovation and Skills",UK Space Agency,10/05/2021,R & D Other Travel,UK Space Agency - UK Space Agency,"Personal Expense, Name Withheld",392921,21.45,,,EMPLOYEE
"Department for Business, Innovation and Skills",UK Space Agency,11/05/2021,Capital Grants To Private Sector - Persons & NPISH,UK Space Agency - UK Space Agency,Spottitt Ltd,393081,30177.60,,OX11 0QR,GRANT
"Department for Business, Innovation and Skills",UK Space Agency,14/05/2021,R & D Current Grants to Private Sector - NPISH,UK Space Agency - UK Space Agency,UKRI - Natural Environment Research Council,393100,361129.09,,NP10 8QQ,WGA ONLY
"Department for Business, Innovation and Skills",UK Space Agency,11/05/2021,R & D Contractors,UKSA - UKSA,Alexander Mann Solutions Ltd,393133,12072.14,,EC2N 3AQ,VENDOR
"Department for Business, Innovation and Skills",UK Space Agency,11/05/2021,R & D Rentals Under Non-PFI Operating Leases - Buildings,UK Space Agency - UK Space Agency,Government Property Agency,393184,34409.62,,EC4M 7HP,VENDOR
"Department for Business, Innovation and Skills",UK Space Agency,11/05/2021,R & D Current Grants to Private Sector - NPISH,UK Space Agency - UK Space Agency,UNIVERSITY OF LEEDS,393185,250.00,,LS2 9JT,GRANT
"Department for Business, Innovation and Skills",UK Space Agency,11/05/2021,R & D Consultancy Expenditure,UK Space Agency - UK Space Agency,Deloitte LLP,393191,2580.00,,EC4A 3HQ,VENDOR
"Department for Business, Innovation and Skills",UK Space Agency,11/05/2021,R & D Consultancy Expenditure,UK Space Agency - UK Space Agency,Deloitte LLP,393191,2580.00,,EC4A 3HQ,VENDOR
"Department for Business, Innovation and Skills",UK Space Agency,11/05/2021,R & D Consultancy Expenditure,UK Space Agency - UK Space Agency,Deloitte LLP,393191,2580.00,,EC4A 3HQ,VENDOR
"Department for Business, Innovation and Skills",UK Space Agency,11/05/2021,R & D Consultancy Expenditure,UK Space Agency - UK Space Agency,Deloitte LLP,393191,2580.00,,EC4A 3HQ,VENDOR
"Department for Business, Innovation and Skills",UK Space Agency,11/05/2021,R & D Consultancy Expenditure,UK Space Agency - UK Space Agency,Deloitte LLP,393191,2580.00,,EC4A 3HQ,VENDOR
"Department for Business, Innovation and Skills",UK Space Agency,11/05/2021,R & D Consultancy Expenditure,UK Space Agency - UK Space Agency,Deloitte LLP,393191,2580.00,,EC4A 3HQ,VENDOR
"Department for Business, Innovation and Skills",UK Space Agency,11/05/2021,R & D Consultancy Expenditure,UK Space Agency - UK Space Agency,Deloitte LLP,393191,2580.00,,EC4A 3HQ,VENDOR
"Department for Business, Innovation and Skills",UK Space Agency,11/05/2021,R & D Consultancy Expenditure,UK Space Agency - UK Space Agency,Deloitte LLP,393191,2580.00,,EC4A 3HQ,VENDOR
"Department for Business, Innovation and Skills",UK Space Agency,11/05/2021,R & D Consultancy Expenditure,UK Space Agency - UK Space Agency,Deloitte LLP,393191,8412.00,,EC4A 3HQ,VENDOR
"Department for Business, Innovation and Skills",UK Space Agency,11/05/2021,R & D Consultancy Expenditure,UK Space Agency - UK Space Agency,Deloitte LLP,393191,16416.00,,EC4A 3HQ,VENDOR
"Department for Business, Innovation and Skills",UK Space Agency,11/05/2021,R & D Consultancy Expenditure,UK Space Agency - UK Space Agency,Deloitte LLP,393191,28056.00,,EC4A 3HQ,VENDOR
"Department for Business, Innovation and Skills",UK Space Agency,11/05/2021,R & D Consultancy Expenditure,UK Space Agency - UK Space Agency,Deloitte LLP,393191,34332.00,,EC4A 3HQ,VENDOR
"Department for Business, Innovation and Skills",UK Space Agency,12/05/2021,R & D Current Grants to Private Sector - NPISH,UK Space Agency - UK Space Agency,eOsphere Ltd,393256,144234.41,,OX11 0QR,GRANT
"Department for Business, Innovation and Skills",UK Space Agency,12/05/2021,R & D Current Grants to Private Sector - NPISH,UK Space Agency - UK Space Agency,The University of Nottingham,393263,66769.35,,NG7 2RD,VENDOR
"Department for Business, Innovation and Skills",UK Space Agency,12/05/2021,R & D Other Travel,UKSA - UKSA,"Personal Expense, Name Withheld",393289,40.00,,,EMPLOYEE
"Department for Business, Innovation and Skills",UK Space Agency,12/05/2021,R & D Current Grants to Private Sector - NPISH,UK Space Agency - UK Space Agency,REZATEC LTD,393298,20296.00,,OX11 0QR,GRANT
"Department for Business, Innovation and Skills",UK Space Agency,12/05/2021,R & D Current Grants to Private Sector - NPISH,UKSA - UKSA,University of Bristol,393306,2059.89,,BS8 1RJ,VENDOR
"Department for Business, Innovation and Skills",UK Space Agency,12/05/2021,R & D Current Grants to Private Sector - NPISH,UK Space Agency - UK Space Agency,Geospatial Insight Ltd,393320,61880.91,,B46 3AD,GRANT
"Department for Business, Innovation and Skills",UK Space Agency,13/05/2021,R & D Salaries - Seconded UK Staff,UKSA - UKSA,"Department for Business, Energy and Industrial Strategy",393392,-17568.70,,NP10 8QQ,VENDOR
"Department for Business, Innovation and Skills",UK Space Agency,24/05/2021,R & D Other Professional Services,UKSA - UKSA,Cabinet Office,393474,1936.25,,FY1 9JN,WGA ONLY
"Department for Business, Innovation and Skills",UK Space Agency,24/05/2021,R & D Other Professional Services,UKSA - UKSA,Cabinet Office,393474,4139.75,,FY1 9JN,WGA ONLY
"Department for Business, Innovation and Skills",UK Space Agency,14/05/2021,R & D Other Professional Services,UKSA - UKSA,USBORNE PUBLISHING LTD,393501,1260.00,,EC1N 8RT,GRANT
"Department for Business, Innovation and Skills",UK Space Agency,14/05/2021,R & D Contractors,UKSA - UKSA,Robertson Bell Ltd,393529,730.38,,NN1 1SY,VENDOR
"Department for Business, Innovation and Skills",UK Space Agency,14/05/2021,R & D Contractors,UKSA - UKSA,Robertson Bell Ltd,393530,730.38,,NN1 1SY,VENDOR
"Department for Business, Innovation and Skills",UK Space Agency,20/05/2021,R & D Contractors,UK Space Agency - UK Space Agency,Alexander Mann Solutions Ltd,393745,-1680.16,,EC2N 3AQ,VENDOR
"Department for Business, Innovation and Skills",UK Space Agency,20/05/2021,R & D Other Professional Services,UK Space Agency - UK Space Agency,Alexander Mann Solutions Ltd,393745,465.42,,EC2N 3AQ,VENDOR
"Department for Business, Innovation and Skills",UK Space Agency,20/05/2021,R & D Contractors,UK Space Agency - UK Space Agency,Alexander Mann Solutions Ltd,393745,3230.93,,EC2N 3AQ,VENDOR
"Department for Business, Innovation and Skills",UK Space Agency,17/05/2021,R & D Contractors,UK Space Agency - UK Space Agency,Alexander Mann Solutions Ltd,393746,2388.53,,EC2N 3AQ,VENDOR
"Department for Business, Innovation and Skills",UK Space Agency,18/05/2021,R & D Other Professional Services,UK Space Agency - UK Space Agency,Entrepreneurial-Spark Ltd,393860,3809.98,,G1 3PE,VENDOR
"Department for Business, Innovation and Skills",UK Space Agency,18/05/2021,R & D Other Professional Services,UK Space Agency - UK Space Agency,Entrepreneurial-Spark Ltd,393860,4185.02,,G1 3PE,VENDOR
"Department for Business, Innovation and Skills",UK Space Agency,18/05/2021,R & D Other Professional Services,UK Space Agency - UK Space Agency,Entrepreneurial-Spark Ltd,393860,7319.99,,G1 3PE,VENDOR
"Department for Business, Innovation and Skills",UK Space Agency,18/05/2021,R & D Other Professional Services,UK Space Agency - UK Space Agency,Health and Safety Executive,393861,30421.20,,FY5 3TA,VENDOR
"Department for Business, Innovation and Skills",UK Space Agency,18/05/2021,R & D Other Travel,UK Space Agency - UK Space Agency,"Personal Expense, Name Withheld",393924,116.98,,,EMPLOYEE
"Department for Business, Innovation and Skills",UK Space Agency,18/05/2021,R & D Other Travel,UK Space Agency - UK Space Agency,"Personal Expense, Name Withheld",393926,99.99,,,EMPLOYEE
"Department for Business, Innovation and Skills",UK Space Agency,18/05/2021,R & D Current Grants to Private Sector - NPISH,UK Space Agency - UK Space Agency,Thales Alenia Space UK Ltd,393931,17650.13,,BS16 1EJ,VENDOR
"Department for Business, Innovation and Skills",UK Space Agency,18/05/2021,R & D Current Grants to Private Sector - NPISH,UK Space Agency - UK Space Agency,Thales Alenia Space UK Ltd,393931,39087.52,,BS16 1EJ,VENDOR
"Department for Business, Innovation and Skills",UK Space Agency,18/05/2021,R & D Contractors,UK Space Agency - UK Space Agency,Alexander Mann Solutions Ltd,393952,2621.04,,EC2N 3AQ,VENDOR
"Department for Business, Innovation and Skills",UK Space Agency,20/05/2021,R & D Contractors,UKSA - UKSA,Alexander Mann Solutions Ltd,393978,3976.67,,EC2N 3AQ,VENDOR
"Department for Business, Innovation and Skills",UK Space Agency,19/05/2021,R & D Contractors,UK Space Agency - UK Space Agency,Alexander Mann Solutions Ltd,393996,2710.13,,EC2N 3AQ,VENDOR
"Department for Business, Innovation and Skills",UK Space Agency,19/05/2021,R & D Contractors,UK Space Agency - UK Space Agency,Alexander Mann Solutions Ltd,394052,3150.30,,EC2N 3AQ,VENDOR
"Department for Business, Innovation and Skills",UK Space Agency,19/05/2021,R & D Contractors,UKSA - UKSA,Alexander Mann Solutions Ltd,394054,4989.06,,EC2N 3AQ,VENDOR
"Department for Business, Innovation and Skills",UK Space Agency,19/05/2021,R & D Contractors,UK Space Agency - UK Space Agency,Alexander Mann Solutions Ltd,394057,573.62,,EC2N 3AQ,VENDOR
"Department for Business, Innovation and Skills",UK Space Agency,19/05/2021,R & D Contractors,UK Space Agency - UK Space Agency,Alexander Mann Solutions Ltd,394059,1764.14,,EC2N 3AQ,VENDOR
"Department for Business, Innovation and Skills",UK Space Agency,19/05/2021,R & D Contractors,UKSA - UKSA,Alexander Mann Solutions Ltd,394062,7760.66,,EC2N 3AQ,VENDOR
"Department for Business, Innovation and Skills",UK Space Agency,19/05/2021,R & D Contractors,UKSA - UKSA,Alexander Mann Solutions Ltd,394064,4557.92,,EC2N 3AQ,VENDOR
"Department for Business, Innovation and Skills",UK Space Agency,19/05/2021,R & D Contractors,UKSA - UKSA,Alexander Mann Solutions Ltd,394065,5292.19,,EC2N 3AQ,VENDOR
"Department for Business, Innovation and Skills",UK Space Agency,19/05/2021,R & D Contractors,UKSA - UKSA,Alexander Mann Solutions Ltd,394066,6226.13,,EC2N 3AQ,VENDOR
"Department for Business, Innovation and Skills",UK Space Agency,19/05/2021,R & D Contractors,UKSA - UKSA,Alexander Mann Solutions Ltd,394067,12420.43,,EC2N 3AQ,VENDOR
"Department for Business, Innovation and Skills",UK Space Agency,19/05/2021,R & D Contractors,UKSA - UKSA,Alexander Mann Solutions Ltd,394068,2089.98,,EC2N 3AQ,VENDOR
"Department for Business, Innovation and Skills",UK Space Agency,19/05/2021,R & D Contractors,UKSA - UKSA,Alexander Mann Solutions Ltd,394071,4680.96,,EC2N 3AQ,VENDOR
"Department for Business, Innovation and Skills",UK Space Agency,19/05/2021,R & D Contractors,UKSA - UKSA,Alexander Mann Solutions Ltd,394072,7760.66,,EC2N 3AQ,VENDOR
"Department for Business, Innovation and Skills",UK Space Agency,19/05/2021,R & D Contractors,UKSA - UKSA,Alexander Mann Solutions Ltd,394074,1317.76,,EC2N 3AQ,VENDOR
"Department for Business, Innovation and Skills",UK Space Agency,19/05/2021,R & D Contractors,UKSA - UKSA,Alexander Mann Solutions Ltd,394075,599.88,,EC2N 3AQ,VENDOR
"Department for Business, Innovation and Skills",UK Space Agency,19/05/2021,R & D Contractors,UKSA - UKSA,Alexander Mann Solutions Ltd,394076,2694.68,,EC2N 3AQ,VENDOR
"Department for Business, Innovation and Skills",UK Space Agency,19/05/2021,R & D Contractors,UK Space Agency - UK Space Agency,Alexander Mann Solutions Ltd,394077,5040.48,,EC2N 3AQ,VENDOR
"Department for Business, Innovation and Skills",UK Space Agency,24/05/2021,R & D Contractors,UKSA - UKSA,Alexander Mann Solutions Ltd,394078,12606.12,,EC2N 3AQ,VENDOR
"Department for Business, Innovation and Skills",UK Space Agency,24/05/2021,R & D Other Professional Services,UKSA - UKSA,ESPI - European Space Policy Institute,394225,13035.00,,1030,VENDOR
"Department for Business, Innovation and Skills",UK Space Agency,24/05/2021,R & D Other Professional Services,UKSA - UKSA,Cabinet Office,394226,1262.50,,FY1 9JN,WGA ONLY
"Department for Business, Innovation and Skills",UK Space Agency,20/05/2021,R & D Current Grants to Private Sector - NPISH,UK Space Agency - UK Space Agency,United Nations Institute for Training and Research (UNITAR),394266,13764.00,,1211,GRANT
"Department for Business, Innovation and Skills",UK Space Agency,20/05/2021,R & D Current Grants to Private Sector - NPISH,UK Space Agency - UK Space Agency,United Nations Institute for Training and Research (UNITAR),394269,110385.00,,1211,GRANT
"Department for Business, Innovation and Skills",UK Space Agency,20/05/2021,R & D Other Travel,UK Space Agency - UK Space Agency,"Personal Expense, Name Withheld",394315,152.00,,,EMPLOYEE
"Department for Business, Innovation and Skills",UK Space Agency,26/05/2021,R & D Other Professional Services,UKSA - UKSA,RHEATECH LTD,394350,-128810.13,,OX11 0QX,GRANT
"Department for Business, Innovation and Skills",UK Space Agency,26/05/2021,R & D Other Professional Services,UKSA - UKSA,RHEATECH LTD,394350,212132.84,,OX11 0QX,GRANT
"Department for Business, Innovation and Skills",UK Space Agency,26/05/2021,R & D Other Professional Services,UKSA - UKSA,RHEATECH LTD,394350,283382.31,,OX11 0QX,GRANT
"Department for Business, Innovation and Skills",UK Space Agency,26/05/2021,R & D Other Professional Services,UKSA - UKSA,Cabinet Office,394357,2817.50,,FY1 9JN,WGA ONLY
"Department for Business, Innovation and Skills",UK Space Agency,21/05/2021,R & D Training and Development Expenditure,UKSA - UKSA,Dods Group Ltd,394421,300.00,,SE1 9SG,VENDOR
"Department for Business, Innovation and Skills",UK Space Agency,21/05/2021,R & D Current Grants to Private Sector - NPISH,UK Space Agency - UK Space Agency,ECOMETRICA LTD,394462,30415.78,,EH4 2HS,GRANT
"Department for Business, Innovation and Skills",UK Space Agency,21/05/2021,R & D Current Grants to Private Sector - NPISH,UK Space Agency - UK Space Agency,ECOMETRICA LTD,394462,42407.28,,EH4 2HS,GRANT
"Department for Business, Innovation and Skills",UK Space Agency,21/05/2021,R & D Current Grants to Private Sector - NPISH,UK Space Agency - UK Space Agency,ECOMETRICA LTD,394462,60606.84,,EH4 2HS,GRANT
"Department for Business, Innovation and Skills",UK Space Agency,21/05/2021,R & D Current Grants to Private Sector - NPISH,UK Space Agency - UK Space Agency,ECOMETRICA LTD,394463,700.00,,EH4 2HS,GRANT
"Department for Business, Innovation and Skills",UK Space Agency,21/05/2021,R & D Current Grants to Private Sector - NPISH,UK Space Agency - UK Space Agency,REMOTE SENSING APPLICATIONS CONSULTANTS LTD,394478,40559.55,,SO24 0AA,VENDOR
"Department for Business, Innovation and Skills",UK Space Agency,24/05/2021,R & D Contractors,UK Space Agency - UK Space Agency,Robertson Bell Ltd,394480,253.94,,WC1H 0BS,VENDOR
"Department for Business, Innovation and Skills",UK Space Agency,24/05/2021,R & D Hire of Agency Staff,UK Space Agency - UK Space Agency,Robertson Bell Ltd,394480,435.34,,WC1H 0BS,VENDOR
"Department for Business, Innovation and Skills",UK Space Agency,26/05/2021,R & D Professional Subscriptions,UKSA - UKSA,ROYAL AERONAUTICAL SOCIETY,394484,-245.00,,W1J 7BQ,VENDOR
"Department for Business, Innovation and Skills",UK Space Agency,26/05/2021,R & D Professional Subscriptions,UKSA - UKSA,ROYAL AERONAUTICAL SOCIETY,394484,490.00,,W1J 7BQ,VENDOR
"Department for Business, Innovation and Skills",UK Space Agency,24/05/2021,R & D Other Professional Services,UK Space Agency - UK Space Agency,Ask an Astronaut Ltd,394492,45.06,,G3 7LW,VENDOR
"Department for Business, Innovation and Skills",UK Space Agency,24/05/2021,R & D Other Professional Services,UK Space Agency - UK Space Agency,Ask an Astronaut Ltd,394492,386.94,,G3 7LW,VENDOR
"Department for Business, Innovation and Skills",UK Space Agency,24/05/2021,R & D Other Travel,UKSA - UKSA,"Personal Expense, Name Withheld",394551,78.98,,,EMPLOYEE
"Department for Business, Innovation and Skills",UK Space Agency,25/05/2021,R & D Contractors,UK Space Agency - UK Space Agency,Alexander Mann Solutions Ltd,394657,-2110.20,,EC2N 3AQ,VENDOR
"Department for Business, Innovation and Skills",UK Space Agency,25/05/2021,R & D Contractors,UK Space Agency - UK Space Agency,Alexander Mann Solutions Ltd,394657,4630.44,,EC2N 3AQ,VENDOR
"Department for Business, Innovation and Skills",UK Space Agency,25/05/2021,R & D Contractors,UK Space Agency - UK Space Agency,Alexander Mann Solutions Ltd,394658,2985.66,,EC2N 3AQ,VENDOR
"Department for Business, Innovation and Skills",UK Space Agency,25/05/2021,R & D Contractors,UK Space Agency - UK Space Agency,Alexander Mann Solutions Ltd,394660,3276.30,,EC2N 3AQ,VENDOR
"Department for Business, Innovation and Skills",UK Space Agency,25/05/2021,R & D Contractors,UK Space Agency - UK Space Agency,Alexander Mann Solutions Ltd,394662,3387.66,,EC2N 3AQ,VENDOR
"Department for Business, Innovation and Skills",UK Space Agency,25/05/2021,R & D Contractors,UKSA - UKSA,Alexander Mann Solutions Ltd,394665,2771.70,,EC2N 3AQ,VENDOR
"Department for Business, Innovation and Skills",UK Space Agency,25/05/2021,R & D Contractors,UK Space Agency - UK Space Agency,Alexander Mann Solutions Ltd,394666,1147.25,,EC2N 3AQ,VENDOR
"Department for Business, Innovation and Skills",UK Space Agency,25/05/2021,R & D Contractors,UK Space Agency - UK Space Agency,Alexander Mann Solutions Ltd,394668,2205.18,,EC2N 3AQ,VENDOR
"Department for Business, Innovation and Skills",UK Space Agency,25/05/2021,R & D Other Professional Services,UK Space Agency - UK Space Agency,Northern Space and Security Ltd,394678,42746.80,,NE66 2GD,VENDOR
"Department for Business, Innovation and Skills",UK Space Agency,25/05/2021,R & D Contractors,UKSA - UKSA,Alexander Mann Solutions Ltd,394682,6615.24,,EC2N 3AQ,VENDOR
"Department for Business, Innovation and Skills",UK Space Agency,25/05/2021,R & D Contractors,UKSA - UKSA,Alexander Mann Solutions Ltd,394684,7004.40,,EC2N 3AQ,VENDOR
"Department for Business, Innovation and Skills",UK Space Agency,25/05/2021,R & D Contractors,UKSA - UKSA,Alexander Mann Solutions Ltd,394685,6900.24,,EC2N 3AQ,VENDOR
"Department for Business, Innovation and Skills",UK Space Agency,25/05/2021,R & D Contractors,UKSA - UKSA,Alexander Mann Solutions Ltd,394687,4179.96,,EC2N 3AQ,VENDOR
"Department for Business, Innovation and Skills",UK Space Agency,25/05/2021,R & D Contractors,UKSA - UKSA,Alexander Mann Solutions Ltd,394692,727.72,,EC2N 3AQ,VENDOR
"Department for Business, Innovation and Skills",UK Space Agency,25/05/2021,R & D Contractors,UKSA - UKSA,Alexander Mann Solutions Ltd,394693,727.72,,EC2N 3AQ,VENDOR
"Department for Business, Innovation and Skills",UK Space Agency,25/05/2021,R & D Contractors,UKSA - UKSA,Alexander Mann Solutions Ltd,394695,3849.54,,EC2N 3AQ,VENDOR
"Department for Business, Innovation and Skills",UK Space Agency,25/05/2021,R & D Contractors,UK Space Agency - UK Space Agency,Alexander Mann Solutions Ltd,394696,2016.19,,EC2N 3AQ,VENDOR
"Department for Business, Innovation and Skills",UK Space Agency,26/05/2021,R & D Other Staff Welfare Costs,UKSA - UKSA,People Asset Management Ltd,394902,95.95,,WA1 1SL,VENDOR
"Department for Business, Innovation and Skills",UK Space Agency,26/05/2021,R & D Other Staff Welfare Costs,UKSA - UKSA,People Asset Management Ltd,394903,251.90,,WA1 1SL,VENDOR
"Department for Business, Innovation and Skills",UK Space Agency,26/05/2021,R & D Other Staff Welfare Costs,UKSA - UKSA,People Asset Management Ltd,394904,155.95,,WA1 1SL,VENDOR
"Department for Business, Innovation and Skills",UK Space Agency,26/05/2021,R & D Other Staff Welfare Costs,UKSA - UKSA,People Asset Management Ltd,394905,155.95,,WA1 1SL,VENDOR
"Department for Business, Innovation and Skills",UK Space Agency,26/05/2021,R & D Other Staff Welfare Costs,UKSA - UKSA,People Asset Management Ltd,394907,95.95,,WA1 1SL,VENDOR
"Department for Business, Innovation and Skills",UK Space Agency,26/05/2021,R & D Other Professional Services,UK Space Agency - UK Space Agency,UKRI - Science and Technology Facilities Council,395005,42605.00,,NP10 8QQ,WGA ONLY
"Department for Business, Innovation and Skills",UK Space Agency,28/05/2021,R & D Other Professional Services,UKSA - UKSA,RHEATECH LTD,395160,331071.91,,OX11 0QX,GRANT
"Department for Business, Innovation and Skills",UK Space Agency,28/05/2021,R & D Current Grants to Private Sector - NPISH,UK Space Agency - UK Space Agency,Orbital Express Launch Ltd,395161,206897.00,,N7 9DP,GRANT
"Department for Business, Innovation and Skills",UK Space Agency,28/05/2021,R & D Marketing and Media,UK Space Agency - UK Space Agency,News UK and Ireland Ltd T/A Times Newspapers,395238,600.00,,PE7 8WT,VENDOR
"Department for Business, Innovation and Skills",UK Space Agency,28/05/2021,R & D Contractors,UKSA - UKSA,Robertson Bell Ltd,395244,730.38,,NW1 1AD,VENDOR
